[Event "Titled Tuesday Blitz June 21 Early 2022"]
[White "Martin Carmona, Gaston Manuel"]
[Black "Begunov, Konstantin"]
[WhiteFideId "22284567"]
[BlackFideId "4118510"]
[WhiteElo "2162"]
[BlackElo "2262"]
[Result "1-0"]
[Round "05"]
[TimeControl "180+1"]
[Date "2022.06.22"]
[WhiteClock "0:00:37"]
[BlackClock "0:00:05"]

1. d4 {[%clk 0:03:00]}  d5 {[%clk 0:02:58]} 2. c4 {[%clk 0:02:58]}  c6 {[%clk 0:02:57]} 3. Nc3 {[%clk 0:02:57]}  Nf6 {[%clk 0:02:58]} 4. Nf3 {[%clk 0:02:57]}  dxc4 {[%clk 0:02:58]} 5. a4 {[%clk 0:02:58]}  Bg4 {[%clk 0:02:58]} 6. Ne5 {[%clk 0:02:57]}  Bh5 {[%clk 0:02:58]} 7. f3 {[%clk 0:02:40]}  Nfd7 {[%clk 0:02:58]} 8. Nxc4 {[%clk 0:02:38]}  e5 {[%clk 0:02:58]} 9. g3 {[%clk 0:02:37]}  exd4 {[%clk 0:02:54]} 10. Qxd4 {[%clk 0:02:31]}  Qf6 {[%clk 0:02:53]} 11. Qxf6 {[%clk 0:02:13]}  Nxf6 {[%clk 0:02:52]} 12. h4 {[%clk 0:02:14]}  Na6 {[%clk 0:02:31]} 13. g4 {[%clk 0:02:10]}  Bg6 {[%clk 0:02:31]} 14. h5 {[%clk 0:02:11]}  Bc2 {[%clk 0:02:27]} 15. Be3 {[%clk 0:02:04]}  Bb3 {[%clk 0:02:13]} 16. Na5 {[%clk 0:02:03]}  Bc5 {[%clk 0:02:02]} 17. Bg5 {[%clk 0:01:31]}  Be6 {[%clk 0:01:44]} 18. Nxb7 {[%clk 0:01:31]}  Bb4 {[%clk 0:01:44]} 19. O-O-O {[%clk 0:01:25]}  Nd5 {[%clk 0:01:16]} 20. e4 {[%clk 0:01:16]}  Nxc3 {[%clk 0:01:09]} 21. bxc3 {[%clk 0:01:16]}  Ba3+ {[%clk 0:01:09]} 22. Kc2 {[%clk 0:01:17]}  Nc7 {[%clk 0:00:58]} 23. Nd6+ {[%clk 0:01:13]}  Kf8 {[%clk 0:00:56]} 24. Nc4 {[%clk 0:01:11]}  Bc5 {[%clk 0:00:54]} 25. Bf4 {[%clk 0:01:07]}  Ne8 {[%clk 0:00:45]} 26. Be2 {[%clk 0:01:05]}  Ke7 {[%clk 0:00:45]} 27. Rb1 {[%clk 0:01:01]}  Bxc4 {[%clk 0:00:35]} 28. Rb7+ {[%clk 0:00:58]}  Kd8 {[%clk 0:00:17]} 29. Bxc4 {[%clk 0:00:55]}  Nd6 {[%clk 0:00:15]} 30. Bxd6 {[%clk 0:00:46]}  Bxd6 {[%clk 0:00:16]} 31. Rd1 {[%clk 0:00:46]}  Kc8 {[%clk 0:00:14]} 32. Ba6 {[%clk 0:00:40]}  Bc7 {[%clk 0:00:05]} 33. Rbb1# {[%clk 0:00:37]} 1-0


[Site "https://www.chess.com"]

[Event "Titled Tuesday Blitz June 21 Early 2022"]
[White "Martin, Lewis"]
[Black "Ianov, Viktor"]
[WhiteFideId "410551"]
[BlackFideId "14102730"]
[WhiteElo "2145"]
[BlackElo "2152"]
[Result "0-1"]
[Round "05"]
[TimeControl "180+1"]
[Date "2022.06.22"]
[WhiteClock "0:00:03"]
[BlackClock "0:01:22"]

1. e4 {[%clk 0:03:00]}  d6 {[%clk 0:02:59]} 2. d4 {[%clk 0:03:00]}  Nf6 {[%clk 0:02:59]} 3. Nc3 {[%clk 0:02:59]}  Nbd7 {[%clk 0:02:58]} 4. Bc4 {[%clk 0:02:56]}  e5 {[%clk 0:02:58]} 5. Nf3 {[%clk 0:02:54]}  Be7 {[%clk 0:02:57]} 6. O-O {[%clk 0:02:53]}  O-O {[%clk 0:02:57]} 7. Re1 {[%clk 0:02:47]}  c6 {[%clk 0:02:55]} 8. a4 {[%clk 0:02:45]}  a5 {[%clk 0:02:54]} 9. dxe5 {[%clk 0:02:41]}  dxe5 {[%clk 0:02:54]} 10. Bg5 {[%clk 0:02:40]}  Qc7 {[%clk 0:02:53]} 11. Qe2 {[%clk 0:02:38]}  Nc5 {[%clk 0:02:52]} 12. Rad1 {[%clk 0:02:33]}  Bg4 {[%clk 0:02:51]} 13. h3 {[%clk 0:02:31]}  Bh5 {[%clk 0:02:50]} 14. b3 {[%clk 0:02:21]}  Rfd8 {[%clk 0:02:49]} 15. Bh4 {[%clk 0:02:17]}  Ne8 {[%clk 0:02:42]} 16. g4 {[%clk 0:01:58]}  Bxh4 {[%clk 0:02:31]} 17. Nxh4 {[%clk 0:01:56]}  Bg6 {[%clk 0:02:27]} 18. Nxg6 {[%clk 0:01:51]}  hxg6 {[%clk 0:02:26]} 19. Qf3 {[%clk 0:01:47]}  Nd6 {[%clk 0:02:24]} 20. Bf1 {[%clk 0:01:39]}  Ne6 {[%clk 0:02:23]} 21. Rd2 {[%clk 0:01:23]}  Nd4 {[%clk 0:02:19]} 22. Qg3 {[%clk 0:01:19]}  Qe7 {[%clk 0:02:17]} 23. Red1 {[%clk 0:01:17]}  Ne8 {[%clk 0:02:14]} 24. Bc4 {[%clk 0:01:08]}  Nc7 {[%clk 0:02:12]} 25. Kg2 {[%clk 0:00:58]}  Qc5 {[%clk 0:02:11]} 26. Ne2 {[%clk 0:00:50]}  Nce6 {[%clk 0:01:59]} 27. c3 {[%clk 0:00:46]}  Nxe2 {[%clk 0:01:56]} 28. Rxd8+ {[%clk 0:00:43]}  Rxd8 {[%clk 0:01:53]} 29. Rxd8+ {[%clk 0:00:42]}  Nxd8 {[%clk 0:01:53]} 30. Bxe2 {[%clk 0:00:43]}  Ne6 {[%clk 0:01:51]} 31. Bf1 {[%clk 0:00:35]}  Nf4+ {[%clk 0:01:51]} 32. Kh2 {[%clk 0:00:33]}  b5 {[%clk 0:01:49]} 33. axb5 {[%clk 0:00:31]}  cxb5 {[%clk 0:01:49]} 34. Qf3 {[%clk 0:00:21]}  b4 {[%clk 0:01:48]} 35. cxb4 {[%clk 0:00:18]}  axb4 {[%clk 0:01:48]} 36. Kg3 {[%clk 0:00:17]}  g5 {[%clk 0:01:45]} 37. h4 {[%clk 0:00:15]}  gxh4+ {[%clk 0:01:44]} 38. Kxh4 {[%clk 0:00:15]}  Qc1 {[%clk 0:01:42]} 39. Bc4 {[%clk 0:00:09]}  Qg1 {[%clk 0:01:37]} 40. Kg5 {[%clk 0:00:08]}  g6 {[%clk 0:01:35]} 41. Kf6 {[%clk 0:00:07]}  Qh2 {[%clk 0:01:34]} 42. Bxf7+ {[%clk 0:00:07]}  Kh7 {[%clk 0:01:32]} 43. Bxg6+ {[%clk 0:00:05]}  Nxg6 {[%clk 0:01:31]} 44. Qf5 {[%clk 0:00:05]}  Qh6 {[%clk 0:01:29]} 45. g5 {[%clk 0:00:05]}  Qf8+ {[%clk 0:01:28]} 46. Ke6 {[%clk 0:00:04]}  Qc8+ {[%clk 0:01:27]} 47. Kf6 {[%clk 0:00:04]}  Qd8+ {[%clk 0:01:26]} 48. Ke6 {[%clk 0:00:04]}  Qe7+ {[%clk 0:01:26]} 49. Kd5 {[%clk 0:00:03]}  Qb7+ {[%clk 0:01:25]} 50. Ke6 {[%clk 0:00:03]}  Qc6+ {[%clk 0:01:23]} 51. Kf7 {[%clk 0:00:03]}  Qc7+ {[%clk 0:01:23]} 52. Kf6 {[%clk 0:00:03]}  Qe7# {[%clk 0:01:22]} 0-1


[Site "https://www.chess.com"]

[Event "Titled Tuesday Blitz June 21 Early 2022"]
[White "Martinez Alcantara, Jose Eduardo"]
[Black "Kosteniuk, Alexandra"]
[WhiteFideId "3805662"]
[BlackFideId "4128125"]
[WhiteElo "2703"]
[BlackElo "2469"]
[Result "1-0"]
[Round "05"]
[TimeControl "180+1"]
[Date "2022.06.21"]
[WhiteClock "0:00:21"]
[BlackClock "0:00:22"]

1. e4 {[%clk 0:03:00]}  e5 {[%clk 0:02:59]} 2. Nf3 {[%clk 0:03:01]}  Nc6 {[%clk 0:02:59]} 3. Bb5 {[%clk 0:03:02]}  a6 {[%clk 0:02:59]} 4. Ba4 {[%clk 0:03:02]}  Nf6 {[%clk 0:02:55]} 5. d3 {[%clk 0:03:02]}  Bc5 {[%clk 0:02:50]} 6. c3 {[%clk 0:02:59]}  O-O {[%clk 0:02:37]} 7. O-O {[%clk 0:02:58]}  b5 {[%clk 0:02:34]} 8. Bb3 {[%clk 0:02:57]}  d5 {[%clk 0:02:34]} 9. Nbd2 {[%clk 0:02:51]}  Re8 {[%clk 0:02:30]} 10. exd5 {[%clk 0:02:47]}  Nxd5 {[%clk 0:02:29]} 11. Ne4 {[%clk 0:02:48]}  Bf8 {[%clk 0:02:24]} 12. Bg5 {[%clk 0:02:36]}  Be7 {[%clk 0:02:24]} 13. Re1 {[%clk 0:02:24]}  Bg4 {[%clk 0:02:23]} 14. h3 {[%clk 0:02:17]}  Bh5 {[%clk 0:02:23]} 15. Ng3 {[%clk 0:02:12]}  Bxg5 {[%clk 0:02:13]} 16. Nxh5 {[%clk 0:02:08]}  Bh6 {[%clk 0:02:05]} 17. a4 {[%clk 0:01:42]}  b4 {[%clk 0:01:59]} 18. Qc2 {[%clk 0:01:39]}  Rb8 {[%clk 0:01:38]} 19. a5 {[%clk 0:01:37]}  Qd6 {[%clk 0:01:20]} 20. Bc4 {[%clk 0:01:33]}  bxc3 {[%clk 0:01:07]} 21. bxc3 {[%clk 0:01:34]}  Rbd8 {[%clk 0:01:05]} 22. Qb3 {[%clk 0:01:16]}  Re7 {[%clk 0:00:57]} 23. Ng3 {[%clk 0:01:16]}  Nf4 {[%clk 0:00:46]} 24. Nf5 {[%clk 0:00:46]}  Qg6 {[%clk 0:00:46]} 25. Nxe7+ {[%clk 0:00:46]}  Nxe7 {[%clk 0:00:47]} 26. g3 {[%clk 0:00:46]}  Nxh3+ {[%clk 0:00:44]} 27. Kf1 {[%clk 0:00:36]}  Qc6 {[%clk 0:00:37]} 28. Re4 {[%clk 0:00:27]}  Kh8 {[%clk 0:00:29]} 29. Nxe5 {[%clk 0:00:24]}  Qf6 {[%clk 0:00:24]} 30. Nxf7+ {[%clk 0:00:23]}  Kg8 {[%clk 0:00:24]} 31. Nxd8+ {[%clk 0:00:21]}  Kf8 {[%clk 0:00:22]} 32. Ne6+ {[%clk 0:00:21]} 1-0


[Site "https://www.chess.com"]

[Event "Titled Tuesday Blitz June 21 Early 2022"]
[White "Melikhov, Evgeny V."]
[Black "Mangialardo, Tiago Carvalho"]
[WhiteFideId "4122046"]
[BlackFideId "2130718"]
[WhiteElo "1904"]
[BlackElo "2097"]
[Result "1-0"]
[Round "05"]
[TimeControl "180+1"]
[Date "2022.06.22"]
[WhiteClock "0:01:42"]
[BlackClock "0:00:01"]

1. d4 {[%clk 0:03:00]}  d5 {[%clk 0:02:58]} 2. c4 {[%clk 0:03:00]}  e6 {[%clk 0:02:57]} 3. Nc3 {[%clk 0:03:00]}  Nf6 {[%clk 0:02:57]} 4. cxd5 {[%clk 0:03:00]}  exd5 {[%clk 0:02:57]} 5. Bg5 {[%clk 0:03:00]}  Be7 {[%clk 0:02:58]} 6. e3 {[%clk 0:03:00]}  O-O {[%clk 0:02:58]} 7. Bd3 {[%clk 0:03:00]}  c6 {[%clk 0:02:51]} 8. Qc2 {[%clk 0:02:59]}  h6 {[%clk 0:02:51]} 9. Bh4 {[%clk 0:02:59]}  Nbd7 {[%clk 0:02:48]} 10. Nf3 {[%clk 0:02:58]}  Re8 {[%clk 0:02:49]} 11. O-O {[%clk 0:02:58]}  Nf8 {[%clk 0:02:48]} 12. h3 {[%clk 0:02:58]}  Qc7 {[%clk 0:02:38]} 13. Ne5 {[%clk 0:02:55]}  g5 {[%clk 0:02:03]} 14. Bg3 {[%clk 0:02:52]}  Bd6 {[%clk 0:02:04]} 15. f4 {[%clk 0:02:50]}  Nh5 {[%clk 0:01:06]} 16. Bh2 {[%clk 0:02:50]}  Bxe5 {[%clk 0:00:16]} 17. dxe5 {[%clk 0:02:46]}  Ne6 {[%clk 0:00:13]} 18. g4 {[%clk 0:02:27]}  Nhg7 {[%clk 0:00:10]} 19. f5 {[%clk 0:02:19]}  Nc5 {[%clk 0:00:10]} 20. e6 {[%clk 0:01:59]}  Qb6 {[%clk 0:00:02]} 21. Kh1 {[%clk 0:01:44]}  Nxd3 {[%clk 0:00:02]} 22. Qxd3 {[%clk 0:01:43]}  fxe6 {[%clk 0:00:03]} 23. f6 {[%clk 0:01:43]}  Qc7 {[%clk 0:00:01]} 24. Bxc7 {[%clk 0:01:42]} 1-0


[Site "https://www.chess.com"]

[Event "Titled Tuesday Blitz June 21 Early 2022"]
[White "Mickiewicz, Piotr"]
[Black "Araujo Sanchez, Josue"]
[WhiteFideId "1114891"]
[BlackFideId "6416896"]
[WhiteElo "2209"]
[BlackElo "2339"]
[Result "0-1"]
[Round "05"]
[TimeControl "180+1"]
[Date "2022.06.22"]
[WhiteClock "0:00:02"]
[BlackClock "0:00:54"]

1. e4 {[%clk 0:03:00]}  c5 {[%clk 0:02:59]} 2. Nf3 {[%clk 0:03:00]}  e6 {[%clk 0:02:59]} 3. d4 {[%clk 0:03:00]}  cxd4 {[%clk 0:03:00]} 4. Nxd4 {[%clk 0:03:00]}  Nc6 {[%clk 0:03:01]} 5. Nc3 {[%clk 0:02:59]}  Nf6 {[%clk 0:02:59]} 6. g3 {[%clk 0:02:57]}  Bb4 {[%clk 0:02:58]} 7. Bg2 {[%clk 0:02:57]}  Bxc3+ {[%clk 0:02:58]} 8. bxc3 {[%clk 0:02:56]}  a6 {[%clk 0:02:55]} 9. O-O {[%clk 0:02:54]}  d6 {[%clk 0:02:50]} 10. Nxc6 {[%clk 0:02:46]}  bxc6 {[%clk 0:02:51]} 11. Ba3 {[%clk 0:02:45]}  d5 {[%clk 0:02:45]} 12. e5 {[%clk 0:02:38]}  Nd7 {[%clk 0:02:44]} 13. Bd6 {[%clk 0:02:34]}  Nb6 {[%clk 0:02:43]} 14. Qg4 {[%clk 0:02:30]}  g6 {[%clk 0:02:43]} 15. Qf4 {[%clk 0:02:23]}  Nc4 {[%clk 0:02:39]} 16. Bc5 {[%clk 0:02:20]}  Qa5 {[%clk 0:02:35]} 17. Qf6 {[%clk 0:02:08]}  Qxc5 {[%clk 0:02:30]} 18. Qxh8+ {[%clk 0:02:07]}  Qf8 {[%clk 0:02:30]} 19. Qf6 {[%clk 0:02:03]}  Qe7 {[%clk 0:02:29]} 20. Qh8+ {[%clk 0:01:45]}  Qf8 {[%clk 0:02:28]} 21. Qxh7 {[%clk 0:01:39]}  Nxe5 {[%clk 0:02:27]} 22. Rfe1 {[%clk 0:01:35]}  Nc4 {[%clk 0:02:27]} 23. Rab1 {[%clk 0:01:30]}  Kd8 {[%clk 0:02:26]} 24. Bf1 {[%clk 0:01:22]}  Nd6 {[%clk 0:02:25]} 25. c4 {[%clk 0:01:20]}  dxc4 {[%clk 0:02:12]} 26. Qh4+ {[%clk 0:01:15]}  Qe7 {[%clk 0:02:10]} 27. Qh8+ {[%clk 0:01:07]}  Kc7 {[%clk 0:02:09]} 28. Red1 {[%clk 0:01:00]}  e5 {[%clk 0:02:06]} 29. Qh6 {[%clk 0:00:44]}  Be6 {[%clk 0:02:03]} 30. Qe3 {[%clk 0:00:43]}  Bd5 {[%clk 0:02:02]} 31. Qc5 {[%clk 0:00:36]}  Qe6 {[%clk 0:01:57]} 32. Bg2 {[%clk 0:00:27]}  e4 {[%clk 0:01:56]} 33. Bf1 {[%clk 0:00:16]}  Kd7 {[%clk 0:01:52]} 34. Bxc4 {[%clk 0:00:13]}  Bxc4 {[%clk 0:01:47]} 35. Rxd6+ {[%clk 0:00:12]}  Qxd6 {[%clk 0:01:46]} 36. Rb7+ {[%clk 0:00:12]}  Ke6 {[%clk 0:01:43]} 37. Qxc4+ {[%clk 0:00:11]}  Qd5 {[%clk 0:01:44]} 38. Qb4 {[%clk 0:00:09]}  Rd8 {[%clk 0:01:30]} 39. Qe7+ {[%clk 0:00:07]}  Kf5 {[%clk 0:01:28]} 40. Qxf7+ {[%clk 0:00:08]}  Qxf7 {[%clk 0:01:21]} 41. Rxf7+ {[%clk 0:00:09]}  Ke5 {[%clk 0:01:21]} 42. Ra7 {[%clk 0:00:08]}  Rd2 {[%clk 0:01:20]} 43. Rxa6 {[%clk 0:00:07]}  Rxc2 {[%clk 0:01:21]} 44. a4 {[%clk 0:00:07]}  Rc1+ {[%clk 0:01:21]} 45. Kg2 {[%clk 0:00:06]}  Rc2 {[%clk 0:01:22]} 46. Kf1 {[%clk 0:00:06]}  g5 {[%clk 0:01:20]} 47. h3 {[%clk 0:00:05]}  Rc1+ {[%clk 0:01:15]} 48. Ke2 {[%clk 0:00:05]}  Rc2+ {[%clk 0:01:16]} 49. Ke1 {[%clk 0:00:05]}  e3 {[%clk 0:01:15]} 50. fxe3 {[%clk 0:00:04]}  Ke4 {[%clk 0:01:16]} 51. Ra5 {[%clk 0:00:04]}  Kxe3 {[%clk 0:01:14]} 52. Re5+ {[%clk 0:00:04]}  Kd3 {[%clk 0:01:10]} 53. Rxg5 {[%clk 0:00:05]}  c5 {[%clk 0:01:08]} 54. a5 {[%clk 0:00:04]}  c4 {[%clk 0:01:08]} 55. Rd5+ {[%clk 0:00:04]}  Ke3 {[%clk 0:01:08]} 56. Kd1 {[%clk 0:00:03]}  Rh2 {[%clk 0:01:06]} 57. Rg5 {[%clk 0:00:03]}  c3 {[%clk 0:01:05]} 58. Kc1 {[%clk 0:00:03]}  Kd3 {[%clk 0:01:04]} 59. Rd5+ {[%clk 0:00:02]}  Kc4 {[%clk 0:01:04]} 60. Rg5 {[%clk 0:00:02]}  Kb3 {[%clk 0:01:03]} 61. Rb5+ {[%clk 0:00:02]}  Ka4 {[%clk 0:01:03]} 62. Rb6 {[%clk 0:00:02]}  Kxa5 {[%clk 0:01:01]} 63. Rb8 {[%clk 0:00:02]}  Ka4 {[%clk 0:00:59]} 64. g4 {[%clk 0:00:03]}  Ka3 {[%clk 0:00:59]} 65. g5 {[%clk 0:00:03]}  Rxh3 {[%clk 0:00:58]} 66. Rb5 {[%clk 0:00:03]}  Rh2 {[%clk 0:00:58]} 67. Rb6 {[%clk 0:00:03]}  Rg2 {[%clk 0:00:58]} 68. Rb7 {[%clk 0:00:04]}  Ka4 {[%clk 0:00:58]} 69. Kd1 {[%clk 0:00:04]}  Ka5 {[%clk 0:00:57]} 70. Kc1 {[%clk 0:00:05]}  Ka6 {[%clk 0:00:55]} 71. Rb8 {[%clk 0:00:06]}  Ka7 {[%clk 0:00:53]} 72. Rc8 {[%clk 0:00:07]}  Rg3 {[%clk 0:00:53]} 73. Kc2 {[%clk 0:00:06]}  Kb7 {[%clk 0:00:54]} 74. Rc5 {[%clk 0:00:06]}  Kb6 {[%clk 0:00:53]} 75. Rf5 {[%clk 0:00:07]}  Kc6 {[%clk 0:00:52]} 76. Kb3 {[%clk 0:00:07]}  Kd6 {[%clk 0:00:52]} 77. Ra5 {[%clk 0:00:08]}  Ke6 {[%clk 0:00:52]} 78. Kc2 {[%clk 0:00:06]}  Kd6 {[%clk 0:00:51]} 79. Rb5 {[%clk 0:00:06]}  Kc6 {[%clk 0:00:51]} 80. Rb3 {[%clk 0:00:06]}  Kd5 {[%clk 0:00:51]} 81. Rxc3 {[%clk 0:00:07]}  Rg2+ {[%clk 0:00:51]} 82. Kb3 {[%clk 0:00:07]}  Rxg5 {[%clk 0:00:52]} 83. Rd3+ {[%clk 0:00:06]}  Kc5 {[%clk 0:00:52]} 84. Rc3+ {[%clk 0:00:07]}  Kb5 {[%clk 0:00:52]} 85. Rd3 {[%clk 0:00:07]}  Rg2 {[%clk 0:00:52]} 86. Re3 {[%clk 0:00:07]}  Rd2 {[%clk 0:00:52]} 87. Rf3 {[%clk 0:00:07]}  Rd5 {[%clk 0:00:52]} 88. Rg3 {[%clk 0:00:06]}  Rf5 {[%clk 0:00:52]} 89. Rh3 {[%clk 0:00:05]}  Rg5 {[%clk 0:00:51]} 90. Rd3 {[%clk 0:00:06]}  Rg1 {[%clk 0:00:50]} 91. Rc3 {[%clk 0:00:07]}  Rb1+ {[%clk 0:00:50]} 92. Kc2 {[%clk 0:00:07]}  Rg1 {[%clk 0:00:51]} 93. Kd2 {[%clk 0:00:06]}  Kb4 {[%clk 0:00:51]} 94. Rc7 {[%clk 0:00:05]}  Rg2+ {[%clk 0:00:51]} 95. Ke3 {[%clk 0:00:04]}  Rg3+ {[%clk 0:00:52]} 96. Kf4 {[%clk 0:00:04]}  Rg6 {[%clk 0:00:53]} 97. Kf3 {[%clk 0:00:04]}  Rf6+ {[%clk 0:00:53]} 98. Ke4 {[%clk 0:00:05]}  Kb5 {[%clk 0:00:53]} 99. Ke5 {[%clk 0:00:04]}  Rf1 {[%clk 0:00:53]} 100. Re7 {[%clk 0:00:05]}  Kc5 {[%clk 0:00:53]} 101. Ke6 {[%clk 0:00:04]}  Kc6 {[%clk 0:00:52]} 102. Rf7 {[%clk 0:00:04]}  Re1+ {[%clk 0:00:52]} 103. Kf6 {[%clk 0:00:05]}  Kd6 {[%clk 0:00:53]} 104. Kg7 {[%clk 0:00:04]}  Rg1+ {[%clk 0:00:51]} 105. Kf8 {[%clk 0:00:03]}  Rh1 {[%clk 0:00:52]} 106. Rf2 {[%clk 0:00:03]}  Ke6 {[%clk 0:00:52]} 107. Kg7 {[%clk 0:00:01]}  Rg1+ {[%clk 0:00:51]} 108. Kh6 {[%clk 0:00:02]}  Ra1 {[%clk 0:00:52]} 109. Kh5 {[%clk 0:00:02]}  Ke5 {[%clk 0:00:52]} 110. Kh4 {[%clk 0:00:02]}  Rg1 {[%clk 0:00:52]} 111. Rf7 {[%clk 0:00:02]}  Rg8 {[%clk 0:00:52]} 112. Kh5 {[%clk 0:00:02]}  Ke6 {[%clk 0:00:52]} 113. Rf3 {[%clk 0:00:02]}  Rh8+ {[%clk 0:00:53]} 114. Kg4 {[%clk 0:00:01]}  Rb8 {[%clk 0:00:54]} 115. Kg3 {[%clk 0:00:02]}  Rb2 {[%clk 0:00:54]} 0-1


[Site "https://www.chess.com"]

[Event "Titled Tuesday Blitz June 21 Early 2022"]
[White "Nilssen, Ellen Fredericia"]
[Black "Estrada Nieto, Julian"]
[WhiteFideId "1441230"]
[BlackFideId "5101018"]
[WhiteElo "2094"]
[BlackElo "2252"]
[Result "0-1"]
[Round "05"]
[TimeControl "180+1"]
[Date "2022.06.22"]
[WhiteClock "0:00:06"]
[BlackClock "0:00:12"]

1. Nf3 {[%clk 0:03:00]}  d5 {[%clk 0:02:59]} 2. b3 {[%clk 0:03:01]}  Bg4 {[%clk 0:02:58]} 3. e3 {[%clk 0:02:59]}  Nf6 {[%clk 0:02:58]} 4. Bb2 {[%clk 0:02:58]}  Nbd7 {[%clk 0:02:57]} 5. d4 {[%clk 0:02:56]}  e6 {[%clk 0:02:56]} 6. Be2 {[%clk 0:02:55]}  Bd6 {[%clk 0:02:56]} 7. O-O {[%clk 0:02:54]}  O-O {[%clk 0:02:54]} 8. c4 {[%clk 0:02:53]}  c6 {[%clk 0:02:51]} 9. Nc3 {[%clk 0:02:52]}  Qe7 {[%clk 0:02:40]} 10. Rc1 {[%clk 0:02:51]}  Ba3 {[%clk 0:02:38]} 11. Bxa3 {[%clk 0:02:39]}  Qxa3 {[%clk 0:02:37]} 12. Nd2 {[%clk 0:02:32]}  Bf5 {[%clk 0:02:25]} 13. g4 {[%clk 0:02:30]}  Bg6 {[%clk 0:02:24]} 14. h4 {[%clk 0:02:26]}  h6 {[%clk 0:02:19]} 15. f4 {[%clk 0:02:26]}  Qd6 {[%clk 0:02:02]} 16. Qe1 {[%clk 0:02:11]}  Ne4 {[%clk 0:01:58]} 17. Ncxe4 {[%clk 0:02:03]}  Bxe4 {[%clk 0:01:58]} 18. Nxe4 {[%clk 0:02:01]}  dxe4 {[%clk 0:01:58]} 19. Qg3 {[%clk 0:01:58]}  c5 {[%clk 0:01:53]} 20. Rcd1 {[%clk 0:01:54]}  Rad8 {[%clk 0:01:40]} 21. Qg2 {[%clk 0:01:46]}  Qe7 {[%clk 0:01:26]} 22. g5 {[%clk 0:01:38]}  hxg5 {[%clk 0:01:20]} 23. hxg5 {[%clk 0:01:36]}  f5 {[%clk 0:01:11]} 24. gxf6 {[%clk 0:01:32]}  Nxf6 {[%clk 0:01:11]} 25. dxc5 {[%clk 0:01:15]}  Qxc5 {[%clk 0:01:09]} 26. Qh3 {[%clk 0:01:00]}  Qf5 {[%clk 0:00:58]} 27. Qh4 {[%clk 0:00:30]}  Kf7 {[%clk 0:00:50]} 28. Kf2 {[%clk 0:00:26]}  Rh8 {[%clk 0:00:44]} 29. Qg3 {[%clk 0:00:24]}  Rxd1 {[%clk 0:00:30]} 30. Rxd1 {[%clk 0:00:25]}  Rh3 {[%clk 0:00:30]} 31. Qg2 {[%clk 0:00:15]}  Qh7 {[%clk 0:00:29]} 32. Ke1 {[%clk 0:00:11]}  Rh2 {[%clk 0:00:25]} 33. Qg5 {[%clk 0:00:10]}  Qh3 {[%clk 0:00:19]} 34. Qc5 {[%clk 0:00:08]}  Qg3+ {[%clk 0:00:17]} 35. Kd2 {[%clk 0:00:08]}  Ng4 {[%clk 0:00:17]} 36. Qc7+ {[%clk 0:00:07]}  Kf6 {[%clk 0:00:17]} 37. Qd8+ {[%clk 0:00:07]}  Kg6 {[%clk 0:00:16]} 38. Qe8+ {[%clk 0:00:07]}  Kh7 {[%clk 0:00:15]} 39. Qxe6 {[%clk 0:00:04]}  Qxe3+ {[%clk 0:00:15]} 40. Kc2 {[%clk 0:00:04]}  Qxf4 {[%clk 0:00:15]} 41. Rd2 {[%clk 0:00:03]}  Ne3+ {[%clk 0:00:15]} 42. Kc3 {[%clk 0:00:02]}  Qf6+ {[%clk 0:00:13]} 43. Qxf6 {[%clk 0:00:03]}  gxf6 {[%clk 0:00:13]} 44. Kd4 {[%clk 0:00:03]}  Nf1 {[%clk 0:00:12]} 45. Rb2 {[%clk 0:00:03]}  Ng3 {[%clk 0:00:12]} 46. Ke3 {[%clk 0:00:03]}  Nxe2 {[%clk 0:00:11]} 47. Rxe2 {[%clk 0:00:04]}  Rxe2+ {[%clk 0:00:10]} 48. Kxe2 {[%clk 0:00:05]}  f5 {[%clk 0:00:10]} 49. Ke3 {[%clk 0:00:05]}  Kg7 {[%clk 0:00:11]} 50. b4 {[%clk 0:00:05]}  Kf7 {[%clk 0:00:12]} 51. a4 {[%clk 0:00:06]}  Ke7 {[%clk 0:00:12]} 52. Kf4 {[%clk 0:00:07]}  Kd6 {[%clk 0:00:12]} 53. Ke3 {[%clk 0:00:05]}  a5 {[%clk 0:00:12]} 54. c5+ {[%clk 0:00:03]}  Kc6 {[%clk 0:00:12]} 55. Kd4 {[%clk 0:00:02]}  axb4 {[%clk 0:00:12]} 56. Kc4 {[%clk 0:00:03]}  b3 {[%clk 0:00:11]} 57. Kxb3 {[%clk 0:00:03]}  Kxc5 {[%clk 0:00:12]} 58. Kc3 {[%clk 0:00:04]}  f4 {[%clk 0:00:11]} 59. Kd2 {[%clk 0:00:05]}  e3+ {[%clk 0:00:11]} 60. Ke2 {[%clk 0:00:05]}  Kb4 {[%clk 0:00:12]} 61. Kf3 {[%clk 0:00:06]}  Kxa4 {[%clk 0:00:12]} 0-1


[Site "https://www.chess.com"]

[Event "Titled Tuesday Blitz June 21 Early 2022"]
[White "Pappelis, Dimitrios"]
[Black "Sarkar, Justin"]
[WhiteFideId "4215281"]
[BlackFideId "2010011"]
[WhiteElo "1998"]
[BlackElo "2020"]
[Result "0-1"]
[Round "05"]
[TimeControl "180+1"]
[Date "2022.06.22"]
[WhiteClock "0:00:03"]
[BlackClock "0:00:13"]

1. e4 {[%clk 0:03:00]}  e5 {[%clk 0:02:45]} 2. Nf3 {[%clk 0:03:00]}  Nc6 {[%clk 0:02:45]} 3. Bc4 {[%clk 0:03:01]}  Nf6 {[%clk 0:02:44]} 4. d4 {[%clk 0:02:57]}  exd4 {[%clk 0:02:39]} 5. O-O {[%clk 0:02:58]}  Nxe4 {[%clk 0:02:36]} 6. Re1 {[%clk 0:02:58]}  d5 {[%clk 0:02:36]} 7. Bxd5 {[%clk 0:02:59]}  Qxd5 {[%clk 0:02:37]} 8. Nc3 {[%clk 0:02:59]}  Qd8 {[%clk 0:02:37]} 9. Nxe4 {[%clk 0:03:00]}  Be7 {[%clk 0:02:35]} 10. Bg5 {[%clk 0:02:54]}  f6 {[%clk 0:02:13]} 11. Nxf6+ {[%clk 0:02:24]}  gxf6 {[%clk 0:02:14]} 12. Bxf6 {[%clk 0:02:25]}  O-O {[%clk 0:02:02]} 13. Bxe7 {[%clk 0:02:15]}  Nxe7 {[%clk 0:02:02]} 14. Nxd4 {[%clk 0:02:08]}  Nf5 {[%clk 0:01:58]} 15. Qg4+ {[%clk 0:01:30]}  Kh8 {[%clk 0:01:45]} 16. Ne6 {[%clk 0:01:30]}  Bxe6 {[%clk 0:01:36]} 17. Rxe6 {[%clk 0:01:31]}  Qd4 {[%clk 0:01:34]} 18. Qxd4+ {[%clk 0:01:15]}  Nxd4 {[%clk 0:01:35]} 19. Re7 {[%clk 0:01:15]}  Rac8 {[%clk 0:01:31]} 20. Kf1 {[%clk 0:01:03]}  Rfe8 {[%clk 0:00:56]} 21. Rxe8+ {[%clk 0:00:55]}  Rxe8 {[%clk 0:00:55]} 22. Rd1 {[%clk 0:00:52]}  Nc6 {[%clk 0:00:32]} 23. Rd7 {[%clk 0:00:39]}  Re7 {[%clk 0:00:31]} 24. Rd2 {[%clk 0:00:37]}  Kg7 {[%clk 0:00:30]} 25. c3 {[%clk 0:00:36]}  Kf6 {[%clk 0:00:29]} 26. g3 {[%clk 0:00:31]}  Ne5 {[%clk 0:00:27]} 27. f4 {[%clk 0:00:29]}  Nc4 {[%clk 0:00:26]} 28. Rf2 {[%clk 0:00:15]}  a5 {[%clk 0:00:25]} 29. Kg2 {[%clk 0:00:11]}  a4 {[%clk 0:00:24]} 30. b3 {[%clk 0:00:08]}  Ne3+ {[%clk 0:00:23]} 31. Kh3 {[%clk 0:00:08]}  a3 {[%clk 0:00:20]} 32. Re2 {[%clk 0:00:06]}  b5 {[%clk 0:00:19]} 33. g4 {[%clk 0:00:05]}  Nd5 {[%clk 0:00:16]} 34. g5+ {[%clk 0:00:05]}  Kf5 {[%clk 0:00:15]} 35. Rf2 {[%clk 0:00:02]}  Nxf4+ {[%clk 0:00:13]} 36. Kg3 {[%clk 0:00:03]}  Re3+ {[%clk 0:00:13]} 0-1


[Site "https://www.chess.com"]